Cogmind - Beta 17.1 *** ADVENTURER MODE // 2026.09.10 @ 12:03:01 Player: profwumbo Result: Destroyed by Explosive Trap Performance ------------- Evolutions (1) 500 Regions Visited (3) 600 Robots Destroyed (0) 0 Value Destroyed (10) 10 Prototype IDs (2) 40 Alien Tech Used (0) 0 Bonus (200) 200 TOTAL SCORE: 1350 Bonus ------- Pacifist 200 Cogmind --------- Core Integrity 0/400 Matter 296/300 Energy 90/100 System Corruption 2% Temperature Cool (0) Movement Core (100) Ox1 Location -9/Storage Parts ------- > --- POWER (1) -------- (None) > --- PROPULSION (4) --- (None) > --- UTILITY (2) ------ (None) > --- WEAPON (2) ------- Compact Ion Cannon > --- INVENTORY (5) ---- Medium Storage Unit Structural Scanner Peak State ------------ > --- POWER ------------ (None) > --- PROPULSION ------- (None) > --- UTILITY ---------- (None) > --- WEAPON ----------- Compact Ion Cannon > --- INVENTORY -------- Medium Storage Unit Structural Scanner [Rating: 6] Favorites ----------- Power Light Ion Engine Engine Light Ion Engine Propulsion None Utility None Weapon Compact Ion Cannon Energy Gun Improved EM Shotgun Energy Cannon Compact Ion Cannon Build | -11 -10 -9 -9 ------- Run | Yrd Mat Mat Sto Slots Evolved 2 | . . 2 . Power . | . . . . Propulsion 2 | . . 2 . Utility . | . . . . Weapon . | . . . . Parts Attached 4 | 1 . 1 2 Power 1 | 1 . . . Engine 1 | 1 . . . Core . | . . . . Reactor . | . . . . Propulsion . | . . . . Treads . | . . . . Leg . | . . . . Wheel . | . . . . Hover . | . . . . Flight . | . . . . Utility . | . . . . Device . | . . . . Storage . | . . . . Processor . | . . . . Hackware . | . . . . Protection . | . . . . Artifact . | . . . . Weapon 3 | . . 1 2 Energy Gun 2 | . . 1 1 Energy Cannon 1 | . . . 1 Ballistic Gun . | . . . . Ballistic Cannon . | . . . . Launcher . | . . . . Special Weapon . | . . . . Impact Weapon . | . . . . Slashing Weapon . | . . . . Piercing Weapon . | . . . . Special Melee Weapon . | . . . . Unidentified Prototypes 2 | . . 1 1 Parts Lost 2 | . 1 . 1 Power 1 | . 1 . . Propulsion . | . . . . Utility . | . . . . Weapon 1 | . . . 1 Highest Loss Streak 1 | . 1 . 1 To Critical Strikes . | . . . . Average Backups 1 | 4 . 1 2 Power . | 1 . . . Propulsion . | 2 . . . Utility 1 | . . 1 1 Weapon . | 1 . . . Tool/Special . | . . . . Unused Backups 2 | . . . 2 Power . | . . . . Propulsion . | . . . . Utility 2 | . . . 2 Weapon . | . . . . Tool/Special . | . . . . Average Slot Usage (%) 5 | . 11 . 1 Engine 4 | . 11 . . Energy Cannon 1 | . . . 1 Peak Build Rating 6 | 1 1 3 6 Average Rating . | . . . . On Entrance 1 | 6 1 . . Avg Prop Armor Cover (%) . | . . . . Naked Turns 187 | . 25 23 139 Heaviest Build 4 | 3 3 3 4 Greatest Support 3 | 3 3 3 3 Greatest Overweight (x) 1 | . . . 1 Average Overweight (x) . | . . . . Largest Inventory Capacity 5 | 5 5 5 5 Average Capacity 5 | 5 5 5 5 Most Carried 4 | 4 1 3 3 Average Carried 1 | 1 . 1 2 Final Capacity 5 | 5 5 5 5 Final Carried 3 | . 1 3 2 Class Distribution -------------------- 100% | Mutant Dominant Class ---------------- Mutant | -10/Materials Mutant | -9/Materials Mutant | -9/Storage Resources | -11 -10 -9 -9 ----------- Run | Yrd Mat Mat Sto Matter Collected 220 | 200 . . 20 Remotely . | . . . . Salvage Created . | . . . . Parts . | . . . . Haulers Intercepted . | . . . . Recyclers Shooed . | . . . . Parts Field Recycled . | . . . . Retrieved Matter . | . . . . Parts Self-Destructed . | . . . . Prevented . | . . . . Parts Restored . | . . . . Kills | -11 -10 -9 -9 ------- Run | Yrd Mat Mat Sto Combat Hostiles Destroyed . | . . . . Classes Destroyed . | . . . . Best Kill Streak . | . . . . Combat Bots Only . | . . . . Max Kills in Single Turn . | . . . . Gunslinging . | . . . . Exploded . | . . . . Melee . | . . . . Uniques/NPCs Destroyed . | . . . . Combat | -11 -10 -9 -9 -------- Run | Yrd Mat Mat Sto Hostile Shots Fired 152 | . 71 . 81 Missed 63 | . 34 . 29 Hits 89 | . 37 . 52 Melee 2 | . . . 2 Projectile 87 | . 37 . 50 Critical Strikes 1 | . . . 1 Damage Taken 736 | . 222 . 514 Core 589 | . 180 . 409 Absorbed by Shields . | . . . . Ignored by Resistances 230 | . 75 . 155 Core Remaining (%) 64 | 100 28 . . Volleys Fired 4 | . . . 4 Largest 1 | . . . 1 Hottest 90 | . . . 90 Shots Fired 4 | . . . 4 Gun . | . . . . Cannon 4 | . . . 4 Launcher . | . . . . Special . | . . . . Kinetic . | . . . . Thermal 4 | . . . 4 Explosive . | . . . . Electromagnetic . | . . . . Robot Hit Streak 1 | . . . 1 Robot Miss Streak 3 | . . . 3 Penetration Max . | . . . . Secondary Targets . | . . . . Shots Hit Robots 1 | . . . 1 Core Hits 4 | . 1 . 3 Critical Kills . | . . . . Critical Parts Destroyed . | . . . . Critical Strikes . | . . . . Melee Attacks . | . . . . Impact . | . . . . Slashing . | . . . . Piercing . | . . . . Sneak Attacks . | . . . . Combat Hostiles . | . . . . Follow-up Attacks . | . . . . Damage Inflicted 96 | . 21 . 75 Guns . | . . . . Cannons 27 | . . . 27 Explosions . | . . . . Melee . | . . . . Ramming 69 | . 21 . 48 Kinetic . | . . . . Thermal 27 | . . . 27 Explosive . | . . . . Electromagnetic . | . . . . Impact . | . . . . Slashing . | . . . . Piercing . | . . . . Highest Corruption 2 | . . . 2 Average Corruption 1 | . . . 1 Corruption Purged . | . . . . Corruption Blocked . | . . . . Effects 1 | . . . 1 Data Loss (minor) 1 | . . . 1 Overload Shots . | . . . . Overflow Damage 7 | . . . 7 Projectiles 7 | . . . 7 Explosions . | . . . . Melee . | . . . . Knockbacks 1 | . 1 . . Impact 1 | . 1 . . Kinetic . | . . . . Secondary . | . . . . Self-Inflicted Damage 31 | . 10 . 21 Shots . | . . . . Rammed 17 | . 3 . 14 Targets Rammed 17 | . 3 . 14 Kicked . | . . . . Crushed . | . . . . Highest Temperature 142 | . . . 142 Average Temperature 70 | . . . 70 Received Heat Transfer 210 | . 6 . 204 Siege Activations . | . . . . Martial Activations . | . . . . Shielding Activations . | . . . . Robots Disrupted . | . . . . Combat Hostiles . | . . . . Robots Corrupted . | . . . . Combat Hostiles . | . . . . Parts Fried . | . . . . Impact Corruptions . | . . . . Robots Melted . | . . . . Combat Hostiles . | . . . . Parts Melted . | . . . . Heat Transferred 37 | . . . 37 Parts Sabotaged . | . . . . Parts Stolen . | . . . . Parts Stripped . | . . . . Power Chain Reactions . | . . . . Alert | -11 -10 -9 -9 ------- Run | Yrd Mat Mat Sto Maximum Alert Level . | . . . . Low Security (%) 100 | 100 100 100 100 Level 1 . | . . . . Level 2 . | . . . . Level 3 . | . . . . Level 4 . | . . . . Level 5 . | . . . . High Security . | . . . . Max Security . | . . . . Peak Influence 127 | . 16 7 127 Initial 5 | . . 5 2 Average 14 | . 3 5 23 Influence Increases 196 | . 31 7 158 Successful Hack 35 | . 16 7 12 Disable Machine 9 | . . . 9 Destroy Structure 2 | . . . 2 Partial Spotted 15 | . 15 . . Lose Combat Pursuer 135 | . . . 135 Influence Decreases 79 | . 16 15 48 Entered New Map 15 | . . 10 5 Time Decay 54 | . 16 5 33 Lost Part 10 | . . . 10 Squads Dispatched 3 | . . . 3 Investigation . | . . . . Extermination . | . . . . Reinforcement 1 | . . . 1 Assault 2 | . . . 2 Garrison . | . . . . Intercept . | . . . . Searches Triggered . | . . . . Construction Impeded . | . . . . Haulers Reinforced . | . . . . Active Scanning Responses . | . . . . Cargo Convoy Interrupts . | . . . . Stealth | -11 -10 -9 -9 --------- Run | Yrd Mat Mat Sto Distress Signals 2 | . 1 . 1 Communications Jammed . | . . . . Distress Signals . | . . . . Times Spotted 33 | . 10 . 23 Peak Tracking Total 16 | . 10 . 16 Tactical Retreats 3 | . . . 3 Traps | -11 -10 -9 -9 ------- Run | Yrd Mat Mat Sto Traps Triggered 1 | . . . 1 Indirectly . | . . . . Trap Hack Attempts . | . . . . Triggered . | . . . . Disarmed . | . . . . Reprogrammed . | . . . . Reused . | . . . . Traps Extracted . | . . . . Installed . | . . . . Triggered . | . . . . Machines | -11 -10 -9 -9 ---------- Run | Yrd Mat Mat Sto Machines Disabled 1 | . . . 1 Max in Single Turn 1 | . . . 1 Machines Repaired . | . . . . Machines Dismantled . | . . . . Machines Sabotaged . | . . . . Overloaded Fab Kills . | . . . . Hacking | -11 -10 -9 -9 --------- Run | Yrd Mat Mat Sto Machines Accessed 6 | . 2 2 2 Terminals 6 | . 2 2 2 Fabricators . | . . . . Repair Stations . | . . . . Recycling Units . | . . . . Scanalyzers . | . . . . Garrison Access . | . . . . Total Hacks 10 | . 3 2 5 Successful 7 | . 2 2 3 Failed 3 | . 1 . 2 Catastrophic . | . . . . Database Lockouts . | . . . . Manual 1 | . . 1 . Terminals 10 | . 3 2 5 Fabricators . | . . . . Repair Stations . | . . . . Recycling Units . | . . . . Scanalyzers . | . . . . Garrison Access . | . . . . Terminal Hacks 7 | . 2 2 3 Open Door 1 | . . . 1 Branch Access Points 2 | . . 1 1 Zone Layout 4 | . 2 1 1 Fabricator Hacks . | . . . . Repair Station Hacks . | . . . . Recycling Unit Hacks . | . . . . Scanalyzer . | . . . . Garrison Access Hacks . | . . . . Unauthorized Hacks . | . . . . Terminals . | . . . . Fabricators . | . . . . Repair Stations . | . . . . Recycling Units . | . . . . Scanalyzers . | . . . . Garrison Access . | . . . . Data Cores Recovered . | . . . . Used . | . . . . Hacking Detections 3 | . 2 . 1 Full Trace Events . | . . . . Feedback Events . | . . . . Feedback Blocked . | . . . . Robot Schematics Acquired . | . . . . Robots Built . | . . . . Authchips . | . . . . Time . | . . . . Total Robot Build Rating . | . . . . Part Schematics Acquired . | . . . . Parts Built . | . . . . Authchips . | . . . . Time . | . . . . Total Part Build Rating . | . . . . Part Studies Acquired . | . . . . Parts Repaired . | . . . . Time . | . . . . Parts Recycled . | . . . . Recycled Matter . | . . . . Retrieved Matter . | . . . . Retrieved Components . | . . . . Parts Scanalyzed . | . . . . Part Schematics Acquired . | . . . . Parts Damaged . | . . . . Bothacking | -11 -10 -9 -9 ------------ Run | Yrd Mat Mat Sto Used RIF Installer . | . . . . Robots Hacked . | . . . . Non-combat . | . . . . Combat . | . . . . Robot Hacks Applied . | . . . . Relay Couplers Released . | . . . . Fabnet Peak Effective % . | . . . . Robots Rewired . | . . . . Allies Hacked . | . . . . Hacks Repelled . | . . . . Allies | -11 -10 -9 -9 -------- Run | Yrd Mat Mat Sto Total Allies 2 | . . . 2 Largest Group 2 | . . . 2 Highest-Rated Group 62 | . . . 62 Highest-Rated Ally 31 | . . . 31 Total Orders . | . . . . Ally Attacks 9 | . . . 9 Total Damage 145 | . . . 145 Kills . | . . . . Allies Corrupted . | . . . . Allies Melted . | . . . . Intel | -11 -10 -9 -9 ------- Run | Yrd Mat Mat Sto Active Infowar (turns) . | . . . . Robot Analysis Total . | . . . . Derelict Logs Recovered . | . . . . Drone Launches . | . . . . Drone Recoveries . | . . . . Exploration | -11 -10 -9 -9 ------------- Run | Yrd Mat Mat Sto Turns Passed 311 | 6 112 26 167 Spaces Moved 451 | 4 195 45 207 Core 451 | 4 195 45 207 Treads . | . . . . Legs . | . . . . Wheels . | . . . . Hover . | . . . . Flight . | . . . . Fastest Speed 50 | 50 50 50 50 Average Speed 51 | 50 50 50 53 Slowest Speed 100 | 50 50 50 100 Overloaded Moves . | . . . . Propulsion Burnouts . | . . . . Robots Hopped . | . . . . Potential Cave-ins . | . . . . Cave-ins Triggered . | . . . . Exploration Rate (%) 22 | 2 51 4 34 Regions Visited 3 Branch Regions 1 Pre-discovered Areas . | . . . . Known Exits Taken 1 | . . 1 . Unknown Exits Taken 2 | 1 1 . . Scrap Searched . | . . . . Spaces Dug . | . . . . Terrain Destroyed 2 | . . . 2 Melee . | . . . . Projectile 2 | . . . 2 AOE . | . . . . Terrain Rammed . | . . . . Walls Destroyed . | . . . . Machines Disabled . | . . . . Actions | -11 -10 -9 -9 --------- Run | Yrd Mat Mat Sto Total 525 | 9 208 48 260 Wait 41 | . 10 . 31 Move 448 | 3 194 44 207 Hop . | . . . . Pick Up 4 | . 1 2 1 Fast Attach 2 | 1 . . 1 Attach 2 | . . 1 1 Detach 1 | . . 1 . Swap . | . . . . Drop 6 | 5 . . 1 Fire 4 | . . . 4 Melee . | . . . . Ram 17 | . 3 . 14 Kick . | . . . . Crush . | . . . . Escape Stasis . | . . . . Rewire . | . . . . Trap . | . . . . Miscellaneous . | . . . . Route ------- -11/Scrapyard -10/Materials -9/Materials (discovered 3 exits: Min x2 / *Sto) -9/Storage (discovered 1 exit: Rec) History --------- Turn | Location | Event 1 | -11/Scrapyard | Released all parts (6) 4 | -11/Scrapyard | Discovered new exit (range 3) 7 | -11/Scrapyard | Entered Materials 109 | -10/Materials | Discovered new exit (range 14) 113 | -10/Materials | Core integrity fell below 50% 119 | -10/Materials | Entered another Materials area 119 | -9/Materials | Evolved 2 slots: Propulsion x2 119 | -9/Materials | Discovered new exit (range 14) 140 | -9/Materials | Identified exit to Mines 140 | -9/Materials | Identified exit to Storage 145 | -9/Materials | Entered Storage 153 | -9/Storage | Met a pair of Derelict thieves 201 | -9/Storage | Identified exit to Recycling 254 | -9/Storage | Core integrity fell below 50% 301 | -9/Storage | Core integrity fell below 20% 309 | -9/Storage | Build established: Mutant 312 | -9/Storage | Destroyed by Explosive Trap Last Messages --------------- System corrupted: Component data lost. O-16 Technician distress signal alerts nearby ally. O-16 Technician: "IFF HANDSHAKE FAILED. SECURING TERMINAL." Connecting with Door Terminal... >>Open(Door) Sealed Heavy Doors opened. Acquired Prototype Energy Cannon. Identified Com. Ion Cannon. Destroyed Flight Unit. Door Terminal disabled. Slammed into S-10 Pest. Destabilizing: System corrupted (+1). Slammed into G-34 Mercenary. ALERT: Hostiles spotted, dispatching reinforcements to Terminal S002. K-01 Serf collects debris. Triggered Explosive Trap. An explosion rips through the floor. Map ----- +----------------------------------------------------+ | | | | | | | | | | | | | | | | | | | | | | | | | ?????????????????????????????????????????????????? | | ?????????????????????????????????????????????????? | | ?????????????????????????????????????????????????? | | ?????????????????????????????????????????????????? | | ?????????????????????????????????????????????????? | | ???????????######+##########?????????????????????? | | ???????????? s ??????????????????????? | | ?????????????# #???????????????????????? | | ?????????????# #???????????????????????? | | ?????????????# #???????????????????????? | | ?????????????# #???????????????????????? | | ?????????????# ##########??????????????? | | ?????????????# +??????????????? | | ????????????### gu @ #?????????????????? | | ??????????###;; Yg s #?????????????????? | | ??????????# + s ^ #?????????????????? | | ??????????### # #####+##### #?????????????????? | | ????????????### ## ### #?????????????????? | | ??????????????# ##] ""#?k ????????????????? | | ??????????????# ## """ T"#?######???????????????? | | ???????? % ! # ## T" ""#??????????????????????? | | ??????????? + + """ ###??????????????????????? | | ????????????? # ## #????????????????????????? | | ??????????????# #######+#????????????????????????? | | ######????????# #?????# #????????????????????????? | | #????????# #?????# #????????????????????????? | | #????????# #?????# #????????????????????????? | | #????????# #?????# #????????????????????????? | | #????????# #????## ##???????????????????????? | | ########## ###### #???????????????????????? | | + #???????????????????????? | | ################# #???????????????????????? | | #???????????????#####???????????????????????? | | #???????????????????????????????????????????? | | #???????????????????????????????????????????? | | #???????????????????????????????????????????? | | % #???????????????????????????????????????????? | | ###+######???????????????????????????????????????? | +----------------------------------------------------+ Best States ------------- Heat Dissipation 28 Energy Generation 10 Energy Capacity 125 Matter Stores 300 Matter Capacity 300 Sight Range 16 Terrain Scan Density 10 Resistance: KI 20 Resistance: TH 20 Resistance: EX 20 Resistance: EM 20 Resistance: I 20 Resistance: S 20 Resistance: P 20 Evasion (%) 50 Offensive Hacking 10 Item Schematics ----------------- None Robot Schematics ------------------ None Fabricated ------------ Nothing Repaired ---------- Nothing Studied --------- None Alien Tech Used ----------------- None Achievements -------------- None Challenges ------------ None Game ------ Seed MomentumGatlingDisintegrator Manual? 0 Play Time 00:08:23 Cumulative 21.7 hours Start 2026.09.10 @ 11:54:48 End 2026.09.10 @ 12:03:01 Sessions 1 Manual Loads 0 Difficulty Adventurer Special Mode None Game No. 20 Rogue 15 Adventurer 3 Explorer 2 Win Type - Total 0 Types 0/0/0/0/0/0/0/0/0/0 Lore% 10 Gallery% 16 Achievement% 14 Wizard Run 0 Options --------- Layout 1 ASCII 0 Keyboard 1 Movement Vi Keybinds 0 Fullscreen 1 Font 24/Crisp Map View 50x35 Zoom Use 0% Tactical HUD 0 Map Filters NONE Filters NONE Steam 1 RUN: 1251e162-76e3-484b-b552-2fe9260f0218